bitfinex/quotes_SOLUSD_20250904
["timestamp","ask_amount","ask_price","bid_price","bid_amount"]
[1757004017292,71.47742299,204.3,204.29,0.03]
[1757004018397,32.85742299,204.3,204.29,0.03]
[1757004018691,69.5147626,204.3,204.29,0.74]
[1757004019794,30.8947626,204.3,204.29,0.74]
[1757004019966,69.5147626,204.3,204.29,0.74]
[1757004020165,69.8047626,204.3,204.29,0.03]
[1757004020578,69.8047626,204.3,204.24,0.71]
[1757004020770,74.70201776,204.3,204.24,0.71]
[1757004022183,0.29,204.29,204.24,0.71]
[1757004022389,26.0,204.25,204.22,0.71]
[1757004022586,38.62,204.24,204.22,0.71]
[1757004023778,38.62,204.24,204.23,0.71]
[1757004023975,43.51620054,204.24,204.23,0.71]
[1757004024195,43.51620054,204.24,204.21,0.71]
[1757004024569,43.51620054,204.24,204.22,0.71]
[1757004024902,43.51620054,204.24,204.23,0.71]
[1757004025199,43.53620054,204.24,204.23,0.71]
[1757004025365,38.64,204.24,204.23,0.71]
[1757004025571,4.89548147,204.27,204.23,0.71]
[1757004025572,4.89548147,204.27,204.23,14.30559401]
[1757004025776,38.64,204.26,204.24,0.71]
[1757004026069,4.89548147,204.27,204.24,0.71]
[1757004026070,38.64,204.25,204.24,0.71]
[1757004027174,4.89548147,204.27,204.24,0.71]
[1757004027371,38.64,204.26,204.24,0.71]
[1757004027688,4.8950022,204.29,204.24,0.71]
[1757004027891,4.89548147,204.27,204.24,0.71]
[1757004028093,38.64,204.26,204.24,0.71]
[1757004028286,132.9,204.33,204.25,13.59559401]
[1757004028492,52.29559401,204.32,204.26,0.71]
[1757004028678,57.18987748,204.32,204.26,0.71]
[1757004028883,43.59428347,204.32,204.26,0.71]
[1757004029600,56.11999216,204.32,204.26,0.71]
[1757004029896,4.89524182,204.28,204.26,0.71]
[1757004030072,38.62,204.27,204.24,0.74]
[1757004030273,38.62,204.27,204.25,0.71]
[1757004030983,38.62,204.27,204.24,0.03]
[1757004031183,38.62,204.27,204.26,0.71]
[1757004032395,43.51548147,204.27,204.26,0.71]
[1757004032701,4.89548147,204.27,204.26,0.71]
[1757004032873,43.51548147,204.27,204.26,0.71]
[1757004040098,4.8950022,204.29,204.26,0.71]
[1757004040296,38.62,204.28,204.27,0.71]
[1757004040691,38.62,204.28,204.24,0.03]
[1757004040897,38.62,204.28,204.25,0.71]
[1757004043184,43.51526676,204.28,204.25,0.71]
[1757004043485,43.51526676,204.28,204.24,0.03]
[1757004043690,43.51526676,204.28,204.25,0.71]
[1757004044099,46.41984571,204.28,204.25,0.71]
[1757004044401,46.41984571,204.28,204.26,0.71]
[1757004044618,2.90457895,204.27,204.24,14.33559401]
[1757004044808,2.90457895,204.25,204.24,13.62559401]
[1757004044989,38.62,204.25,204.24,14.33559401]
[1757004045193,43.51596083,204.25,204.24,14.33559401]
[1757004046112,4.89596083,204.25,204.24,14.33559401]
[1757004046295,43.51596083,204.25,204.24,14.33559401]
[1757004046799,2.90457895,204.27,204.24,14.33559401]
[1757004046990,43.51573237,204.26,204.25,0.71]
[1757004047485,2.90457895,204.27,204.25,0.71]
[1757004047687,38.62,204.26,204.25,0.71]
[1757004047892,38.62,204.26,204.25,3.61457895]
[1757004048208,38.62,204.26,204.25,14.30559401]
[1757004050408,0.06,204.27,204.26,13.59559401]
[1757004050611,38.68,204.27,204.26,0.67]
[1757004052503,0.06,204.27,204.26,14.26559401]
[1757004052694,38.68,204.27,204.26,14.26559401]
[1757004055299,43.57548147,204.27,204.26,0.67]
[1757004058212,0.06,204.27,204.26,14.26559401]
[1757004058510,38.66,204.27,204.26,14.26559401]
[1757004062615,38.66,204.27,204.26,13.59559401]
[1757004063009,43.48761614,204.27,204.24,0.03]
[1757004063220,43.55548147,204.27,204.24,0.03]
[1757004063394,4.53761614,204.26,204.24,13.62559401]
[1757004063597,38.6,204.25,204.24,13.62559401]
[1757004063799,43.13761614,204.25,204.24,13.62559401]
[1757004064721,48.03357697,204.25,204.24,13.62559401]
[1757004066006,43.13761614,204.25,204.24,13.62559401]
[1757004066316,4.53761614,204.25,204.24,13.62559401]
[1757004066511,43.13761614,204.25,204.24,13.62559401]
[1757004066711,0.06,204.27,204.24,14.29559401]
[1757004066901,38.6,204.26,204.25,0.67]
[1757004067919,38.6,204.26,204.24,0.7]
[1757004068115,9.49315452,204.27,204.24,0.7]
[1757004068299,38.6,204.26,204.24,0.7]
[1757004069112,4.59761614,204.27,204.24,0.7]
[1757004069423,38.6,204.26,204.24,0.7]
[1757004069629,4.59761614,204.27,204.24,0.7]
[1757004069823,38.6,204.26,204.24,0.03]
[1757004070124,38.6,204.26,204.25,0.67]
[1757004070519,38.6,204.26,204.24,0.03]
[1757004070725,38.6,204.26,204.24,0.7]
[1757004071420,38.6,204.26,204.25,0.67]
[1757004072308,38.6,204.26,204.24,0.7]
[1757004072705,43.49580042,204.26,204.24,0.7]
[1757004073120,48.03341656,204.26,204.24,0.03]
[1757004074228,4.53761614,204.25,204.24,0.03]
[1757004075706,9.72357697,204.25,204.24,0.03]
[1757004076104,62.56917098,204.25,204.24,0.03]
[1757004076706,23.98917098,204.25,204.24,0.03]
[1757004076916,58.03155484,204.25,204.24,0.03]
[1757004077228,62.56917098,204.25,204.24,0.03]
[1757004079813,26.0,204.22,204.21,0.03]
[1757004080006,74.01429619,204.22,204.21,0.03]
[1757004080328,74.30429619,204.22,204.21,0.03]
[1757004080728,78.84191233,204.22,204.21,0.03]
[1757004081106,74.30429619,204.22,204.21,0.03]
[1757004083330,76.26792006,204.22,204.21,0.03]
[1757004084848,32.86030392,204.22,204.21,0.03]
[1757004085023,6.86030392,204.22,204.21,0.7]
[1757004085227,38.6,204.22,204.21,0.7]
[1757004085527,43.13761614,204.22,204.21,0.7]
[1757004085935,43.13761614,204.22,204.21,0.03]
[1757004086241,48.03429619,204.22,204.21,0.03]
[1757004086617,49.99772729,204.22,204.21,0.03]
[1757004086819,50.28772729,204.22,204.21,0.03]
[1757004088028,49.99772729,204.22,204.21,0.03]
[1757004089037,6.86011115,204.22,204.21,0.03]
[1757004089243,49.97772729,204.22,204.21,0.03]
[1757004089738,11.39772729,204.22,204.21,0.03]
[1757004089939,49.97772729,204.22,204.21,0.03]
[1757004092133,11.39772729,204.22,204.21,0.7]
[1757004092331,48.01429619,204.22,204.21,0.7]
[1757004092544,9.43429619,204.22,204.21,0.7]
[1757004092748,48.01429619,204.22,204.21,0.03]
[1757004093615,43.47668005,204.22,204.21,0.03]
[1757004093820,48.01429619,204.22,204.21,0.03]
[1757004094647,9.43429619,204.22,204.21,0.03]
[1757004094834,48.01429619,204.22,204.21,0.7]
[1757004095035,43.47668005,204.22,204.21,0.7]
[1757004095540,48.01429619,204.22,204.21,0.7]
[1757004096954,48.01429619,204.22,204.21,0.03]
[1757004097325,49.97772729,204.22,204.21,0.03]
[1757004098337,48.01429619,204.22,204.21,0.03]
[1757004098541,49.97772729,204.22,204.21,0.03]
[1757004101148,11.39772729,204.22,204.21,0.7]
[1757004101338,48.01429619,204.22,204.21,0.7]
[1757004101952,43.47668005,204.22,204.21,0.7]
[1757004102133,48.01429619,204.22,204.21,0.7]
[1757004103536,48.01429619,204.22,204.21,0.03]
[1757004106653,0.06,204.24,204.22,13.59559401]
[1757004106868,38.58,204.23,204.22,18.13321015]
[1757004107364,38.58,204.23,204.22,18.80321015]
[1757004108866,38.58,204.23,204.22,14.26559401]
[1757004109936,43.11761614,204.23,204.22,14.26559401]
[1757004110247,38.58,204.23,204.22,14.26559401]
[1757004110638,43.11761614,204.23,204.22,14.26559401]
[1757004110960,48.01405642,204.23,204.22,14.26559401]
[1757004111462,38.56,204.23,204.22,14.26559401]
[1757004112189,0.06,204.24,204.22,14.26559401]
[1757004112342,38.56,204.23,204.22,13.59559401]
[1757004112552,38.56,204.23,204.22,0.71]
[1757004114444,0.06,204.24,204.22,18.84321015]
[1757004114644,38.56,204.23,204.22,18.84321015]
[1757004115062,38.56,204.23,204.22,14.30559401]
[1757004118971,0.06,204.24,204.23,13.59559401]
[1757004119161,0.06,204.24,204.23,18.84321015]
[1757004119767,0.06,204.24,204.23,14.30559401]
[1757004120753,0.06,204.24,204.23,18.84321015]
[1757004121158,0.06,204.24,204.23,14.30559401]
[1757004121365,4.59761614,204.24,204.22,13.59559401]
[1757004121568,43.09761614,204.23,204.22,14.30559401]
[1757004122168,38.56,204.23,204.22,14.30559401]
[1757004122765,43.09761614,204.23,204.22,14.30559401]
[1757004123452,41.46559345,204.23,204.22,14.30559401]
[1757004123870,41.46559345,204.23,204.21,0.03]
[1757004124076,2.90559345,204.22,204.21,13.62559401]
[1757004125781,7.8022735,204.22,204.21,0.03]
[1757004126075,8.0922735,204.22,204.21,0.03]
[1757004126383,7.8022735,204.22,204.21,0.03]
[1757004127480,46.6322735,204.22,204.21,0.03]
[1757004128457,46.3422735,204.22,204.21,0.03]
[1757004129384,46.6322735,204.22,204.21,0.03]
[1757004129867,46.6322735,204.22,204.18,0.03]
[1757004129868,26.0,204.19,204.18,0.03]
[1757004130179,67.44559345,204.19,204.18,0.03]
[1757004130366,67.73559345,204.19,204.18,0.03]
[1757004131173,29.19559345,204.19,204.18,0.03]
[1757004131356,67.44559345,204.19,204.18,0.03]
[1757004131565,72.34299293,204.19,204.18,0.03]
[1757004133482,72.34299293,204.19,204.18,0.03]
[1757004134589,30.89739948,204.19,204.18,0.74]
[1757004134785,46.34299293,204.19,204.18,14.33559401]
[1757004136193,41.44559345,204.19,204.18,14.33559401]
[1757004136992,38.54,204.19,204.18,14.33559401]
[1757004137201,41.44559345,204.19,204.18,14.33559401]
[1757004137978,38.54,204.19,204.18,14.33559401]
[1757004138677,46.34299293,204.19,204.18,14.33559401]
[1757004139072,38.54,204.19,204.18,14.33559401]
[1757004139873,0.06,204.24,204.19,13.59559401]
[1757004140098,38.54,204.23,204.21,13.59559401]
[1757004140298,38.54,204.23,204.22,0.71]
[1757004140994,0.06,204.24,204.23,13.59559401]
[1757004141200,0.06,204.24,204.23,17.21118746]
[1757004142590,0.06,204.24,204.23,14.30559401]
[1757004143399,0.06,204.24,204.23,17.21118746]
[1757004143709,0.06,204.24,204.23,14.30559401]
[1757004144206,38.58,204.24,204.23,14.30559401]
[1757004145008,41.48559345,204.24,204.21,13.59559401]
[1757004145194,2.90559345,204.22,204.21,13.59559401]
[1757004145391,41.42559345,204.22,204.21,13.59559401]
[1757004146398,41.71559345,204.22,204.18,0.03]
[1757004146581,2.90559345,204.19,204.18,0.03]
[1757004146787,46.32299293,204.19,204.18,0.03]
[1757004150310,4.89739948,204.19,204.18,0.74]
[1757004150604,26.0,204.21,204.19,13.59559401]
[1757004150605,2.90559345,204.21,204.19,13.59559401]
[1757004150804,38.52,204.2,204.19,14.30559401]
[1757004152288,38.52,204.2,204.18,0.03]
[1757004152590,41.42559345,204.2,204.19,13.59559401]
[1757004152794,38.52,204.2,204.19,14.30559401]
[1757004153908,2.96559345,204.22,204.19,14.30559401]
[1757004154218,38.52,204.21,204.2,14.30559401]
[1757004154386,0.06,204.22,204.21,13.59559401]
[1757004154584,38.58,204.22,204.21,14.30559401]
[1757004154811,38.58,204.22,204.21,0.71]
[1757004155109,0.06,204.22,204.21,3.61559345]
[1757004158004,0.06,204.22,204.21,8.51251328]
[1757004160004,0.06,204.22,204.21,14.30559401]
[1757004163710,0.06,204.24,204.22,13.59559401]
[1757004163912,0.06,204.24,204.23,17.21118746]
[1757004164133,0.06,204.24,204.23,22.10762774]
[1757004164410,0.06,204.24,204.23,17.21118746]
[1757004165014,0.06,204.24,204.23,22.10762774]
[1757004165194,0.06,204.24,204.23,19.20203429]
[1757004165394,0.06,204.24,204.23,22.10762774]
[1757004168710,0.06,204.24,204.23,14.30559401]
[1757004168914,0.06,204.24,204.23,17.21118746]
[1757004169107,0.06,204.24,204.23,22.10762774]
[1757004172235,0.06,204.24,204.23,48.10762774]
[1757004180230,0.06,204.24,204.23,86.56762774]
[1757004180927,0.06,204.27,204.26,39.59559401]
[1757004181130,0.06,204.27,204.26,42.50118746]
[1757004181329,0.06,204.27,204.26,43.18118746]
[1757004181525,0.06,204.27,204.26,43.67075957]
[1757004181726,0.06,204.29,204.27,13.59559401]
[1757004181910,0.06,204.29,204.28,16.99071164]
[1757004182114,0.06,204.29,204.28,17.67071164]
[1757004183126,0.06,204.29,204.28,22.56595346]
[1757004183526,0.06,204.29,204.28,24.19338873]
[1757004184733,0.06,204.29,204.28,62.63338873]
[1757004185816,0.06,204.29,204.28,62.14386455]
[1757004188037,0.06,204.29,204.28,13.59559401]
[1757004195344,0.06,204.29,204.28,18.49083583]
[1757004195551,0.06,204.29,204.28,23.70386455]
[1757004203841,0.06,204.29,204.28,14.27559401]
[1757004204054,0.06,204.29,204.28,13.59559401]
[1757004204356,0.41,204.29,204.28,13.59559401]
[1757004204534,0.06,204.29,204.28,13.59559401]
[1757004207955,4.94302872,204.29,204.28,13.59559401]
[1757004209162,0.41,204.29,204.28,13.59559401]
[1757004209345,9.83803092,204.29,204.28,13.59559401]
[1757004215651,9.48803092,204.29,204.28,13.59559401]
[1757004216062,4.59302872,204.29,204.28,13.59559401]
[1757004216369,0.06,204.29,204.28,13.59559401]
[1757004216573,0.06,204.29,204.28,14.30559401]
[1757004217166,9.48803092,204.29,204.28,13.59559401]
[1757004218349,9.83803092,204.29,204.27,0.03]
[1757004218550,42.91302872,204.28,204.27,0.03]
[1757004218753,5.3050022,204.29,204.27,0.03]
[1757004218754,0.06,204.29,204.27,0.03]
[1757004218947,0.06,204.29,204.28,13.59559401]
[1757004219365,0.06,204.29,204.28,14.30559401]
[1757004219571,4.59302872,204.29,204.27,0.03]
[1757004219763,4.53302872,204.25,204.24,0.03]
[1757004219958,42.91302872,204.25,204.24,0.03]
[1757004220469,38.38,204.25,204.24,0.03]
[1757004220774,4.53302872,204.25,204.24,0.03]
[1757004221071,38.38,204.27,204.24,0.03]
[1757004221273,4.53302872,204.25,204.24,0.03]
[1757004222287,43.27569325,204.27,204.24,0.03]
[1757004222483,4.53302872,204.25,204.24,0.03]
[1757004223566,9.42898955,204.25,204.24,0.03]
[1757004225161,4.89574663,204.26,204.24,0.03]
[1757004225374,0.06,204.29,204.24,0.03]
[1757004225375,42.91302872,204.25,204.24,0.03]
[1757004225569,4.53302872,204.26,204.25,13.59559401]
[1757004225762,38.38,204.27,204.25,14.30559401]
[1757004225968,4.53302872,204.26,204.25,14.30559401]
[1757004226172,26.0,204.28,204.25,14.30559401]
[1757004226368,4.53302872,204.27,204.25,14.30559401]
[1757004226764,64.38,204.28,204.25,14.30559401]
[1757004226975,4.53302872,204.27,204.25,14.30559401]
[1757004227478,4.53302872,204.26,204.24,0.03]
[1757004227672,4.53302872,204.26,204.25,0.66]
[1757004229094,64.38,204.28,204.25,0.66]
[1757004229095,26.0,204.28,204.25,0.66]
[1757004229268,0.06,204.29,204.28,13.59559401]
[1757004229578,0.06,204.29,204.28,14.25559401]
[1757004229970,0.06,204.29,204.28,19.15083583]
[1757004232270,0.06,204.29,204.28,14.25559401]
[1757004233271,4.59302872,204.29,204.27,13.59559401]
[1757004233469,4.59302872,204.29,204.27,14.25559401]
[1757004233675,4.59302872,204.29,204.26,13.59559401]
[1757004233886,0.06,204.29,204.28,0.66]
[1757004235086,0.06,204.29,204.28,10.08827054]
[1757004235983,0.06,204.29,204.28,0.66]
[1757004236372,0.06,204.29,204.28,5.55524182]
[1757004237004,0.06,204.29,204.28,10.08827054]
[1757004237490,0.06,204.29,204.28,12.04987219]
[1757004240288,0.06,204.29,204.28,15.55719566]
[1757004240509,0.06,204.29,204.28,13.59559401]
[1757004241287,0.06,204.29,204.28,14.25559401]
[1757004241593,0.06,204.29,204.28,19.15083583]
[1757004241969,0.06,204.29,204.28,23.68386455]
[1757004242311,0.06,204.29,204.28,25.6454662]
[1757004242496,0.06,204.29,204.28,21.11243748]
[1757004242704,0.06,204.29,204.28,25.6454662]
[1757004244275,0.06,204.29,204.28,21.11243748]
[1757004244491,0.06,204.29,204.28,25.6454662]
[1757004244881,0.06,204.29,204.28,64.0054662]
[1757004245676,0.06,204.29,204.28,62.37346721]
[1757004246081,0.06,204.29,204.28,73.97758613]
[1757004246277,1e-08,204.29,204.28,73.97758613]
[1757004247095,1e-08,204.29,204.28,74.46711031]
[1757004247288,0.06,204.32,204.31,39.59559401]
[1757004247488,0.06,204.32,204.31,81.34607604]
[1757004247687,0.06,204.32,204.31,79.10504631]
[1757004247883,0.06,204.32,204.31,82.00607604]
[1757004248088,0.06,204.32,204.31,86.90059906]
[1757004249399,0.06,204.34,204.32,13.59559401]
[1757004249593,0.06,204.34,204.33,81.34602813]
[1757004249796,0.06,204.34,204.33,56.00602813]
[1757004250001,0.06,204.34,204.33,57.96695663]
[1757004250195,0.06,204.34,204.33,62.86100057]
[1757004252695,0.06,204.34,204.33,142.86100057]
[1757004252897,0.06,204.34,204.33,142.37159618]
[1757004254210,1e-08,204.34,204.33,142.37159618]
[1757004259511,1e-08,204.35,204.34,13.59559401]
[1757004259710,1e-08,204.35,204.34,17.65600418]
[1757004260103,1e-08,204.35,204.34,19.61654823]
[1757004260511,1e-08,204.35,204.34,24.02097223]
[1757004260710,1e-08,204.35,204.34,62.36097223]
[1757004261621,1e-08,204.35,204.34,142.36097223]
[1757004267122,0.38,204.42,204.36,39.59559401]
[1757004267336,0.38,204.42,204.36,80.83662374]
[1757004267516,0.38,204.42,204.36,81.50662374]
[1757004267719,0.38,204.42,204.36,83.46735999]
[1757004268023,0.38,204.42,204.36,88.36068549]
[1757004268801,0.06,204.42,204.36,88.36068549]
[1757004269007,0.32,204.41,204.36,88.36068549]
[1757004269525,0.06,204.42,204.36,88.36068549]
[1757004269841,0.38,204.42,204.36,88.36068549]
[1757004270305,0.06,204.42,204.36,88.36068549]
[1757004270505,0.32,204.41,204.36,88.36068549]
[1757004271330,0.32,204.41,204.36,50.02068549]
[1757004271518,0.38,204.39,204.36,46.44965576]
[1757004271841,0.06,204.39,204.36,88.36068549]
[1757004273345,0.38,204.39,204.36,87.67068549]
[1757004273834,0.38,204.39,204.36,46.44965576]
[1757004274039,0.38,204.39,204.36,87.67068549]
[1757004275242,0.06,204.39,204.36,87.67068549]
[1757004280532,0.06,204.39,204.36,46.44965576]
[1757004280717,0.38,204.39,204.36,87.67068549]
[1757004281541,0.06,204.39,204.36,87.67068549]
[1757004281939,0.06,204.39,204.36,88.34068549]
[1757004285143,0.06,204.39,204.36,87.67068549]
[1757004285528,0.06,204.39,204.36,49.35068549]
[1757004285728,0.06,204.39,204.36,87.67068549]
[1757004286042,0.06,204.39,204.36,88.34068549]
[1757004291255,0.06,204.39,204.36,84.76965576]
[1757004291437,0.06,204.39,204.36,87.67068549]
[1757004293140,0.06,204.39,204.36,49.35068549]
[1757004293355,0.38,204.39,204.36,84.74965576]
[1757004293653,0.38,204.39,204.36,87.65068549]
[1757004293968,0.06,204.39,204.36,87.65068549]
[1757004294559,0.06,204.39,204.36,84.74965576]
[1757004294861,0.06,204.39,204.36,87.65068549]
[1757004295861,0.06,204.39,204.36,44.45735999]
[1757004296159,0.06,204.39,204.36,52.89559401]
[1757004296160,0.38,204.39,204.36,52.89559401]
[1757004297251,0.38,204.39,204.36,57.78891951]
[1757004297745,0.06,204.39,204.36,60.68994924]
[1757004297953,0.06,204.39,204.36,63.65097897]
[1757004300067,0.06,204.39,204.36,64.36097897]
[1757004300254,0.38,204.39,204.36,60.74994924]
[1757004300581,0.38,204.39,204.36,55.85662374]
[1757004300780,0.06,204.39,204.36,17.55662374]
[1757004300959,0.06,204.39,204.36,60.74994924]
[1757004301546,0.06,204.39,204.36,55.85662374]
[1757004302358,0.06,204.39,204.38,13.59559401]
[1757004303074,0.06,204.39,204.38,14.30559401]
[1757004303369,0.06,204.39,204.38,55.50662374]
[1757004303666,0.06,204.39,204.38,57.46745612]
[1757004304074,0.06,204.39,204.38,59.45927304]
[1757004304261,0.06,204.39,204.38,62.36030277]
[1757004307576,0.06,204.39,204.38,63.98898078]
[1757004309278,0.06,204.4,204.39,14.53559401]
[1757004309479,0.06,204.4,204.39,15.24559401]
[1757004309769,0.06,204.4,204.39,20.13820128]
[1757004311874,0.06,204.4,204.39,24.66790902]
[1757004313279,0.06,204.4,204.39,62.94790902]
[1757004313580,0.06,204.4,204.39,67.47761676]
[1757004313783,0.06,204.4,204.39,93.96687748]
[1757004313983,0.32,204.51,204.45,39.59559401]
[1757004314283,4.88908122,204.54,204.45,39.59559401]
[1757004314284,4.52970774,204.48,204.45,77.87559401]
[1757004314462,4.52970774,204.48,204.47,13.59559401]
[1757004314671,4.52970774,204.49,204.47,17.24297317]
[1757004314869,4.88908122,204.54,204.49,13.59559401]
[1757004315074,4.88908122,204.54,204.51,13.59559401]
[1757004315379,0.32,204.53,204.48,13.59559401]
[1757004315564,0.32,204.52,204.49,3.64602097]
[1757004315759,4.88908122,204.54,204.51,13.59559401]
[1757004315976,4.88908122,204.54,204.47,4.89054343]
[1757004315977,4.88908122,204.54,204.48,4.89032877]
[1757004316160,4.88908122,204.54,204.5,13.59559401]
[1757004316359,4.52970774,204.51,204.48,4.89032877]
[1757004316582,4.88908122,204.54,204.5,13.59559401]
[1757004316761,4.88908122,204.54,204.47,13.59559401]
[1757004316961,4.88908122,204.54,204.48,3.64490967]
[1757004317164,0.32,204.53,204.5,13.59559401]
[1757004317476,4.52970774,204.51,204.47,13.59559401]
[1757004317681,4.52970774,204.49,204.48,3.64395152]
[1757004318079,4.52970774,204.49,204.48,17.23954553]
[1757004318391,0.32,204.51,204.49,13.59559401]
[1757004318680,4.52970774,204.5,204.48,4.89043074]
[1757004318880,0.32,204.51,204.49,3.64354118]
[1757004319068,0.32,204.51,204.48,4.89043074]
[1757004319270,0.32,204.51,204.49,3.64354087]
[1757004319470,5.08880787,204.55,204.48,13.59559401]
[1757004319782,0.32,204.54,204.49,3.64289486]
[1757004319964,4.52970774,204.51,204.48,13.59559401]
[1757004320166,4.52970774,204.5,204.49,3.6427415]
[1757004320367,4.84970774,204.5,204.49,3.6427415]
[1757004320575,4.84970774,204.5,204.49,3.64233489]
[1757004320576,4.52970774,204.5,204.49,3.64233489]
[1757004320984,4.52970774,204.51,204.49,3.64233489]
[1757004321172,4.52970774,204.5,204.49,0.65]
[1757004321376,4.52970774,204.5,204.49,3.6419992]
[1757004321573,4.52970774,204.5,204.49,17.23759321]
[1757004321767,0.32,204.54,204.5,13.59559401]
[1757004321970,4.52970774,204.51,204.49,13.59559401]
[1757004322169,0.32,204.54,204.49,13.59559401]
[1757004322477,4.52970774,204.51,204.5,4.29024888]
[1757004323394,4.52970774,204.51,204.5,3.64024888]
[1757004325282,4.52970774,204.51,204.49,13.59559401]
[1757004325480,4.52970774,204.5,204.49,13.59559401]
[1757004325788,4.52970774,204.5,204.49,17.23319656]
[1757004326170,4.52970774,204.5,204.49,22.77341124]
[1757004326370,0.2,204.55,204.49,22.77341124]
[1757004326588,4.52970774,204.52,204.5,4.28760255]
[1757004326785,4.52970774,204.53,204.52,13.59559401]
[1757004327000,4.52970774,204.53,204.52,14.24559401]
[1757004327291,4.52970774,204.53,204.52,19.13509136]
[1757004328473,4.52970774,204.53,204.52,18.48509136]
[1757004328675,4.52970774,204.53,204.52,19.13509136]
[1757004328875,0.2,204.55,204.52,19.13509136]
[1757004329095,4.52970774,204.53,204.52,19.13509136]
[1757004330063,0.2,204.55,204.52,19.13509136]
[1757004330269,0.2,204.55,204.54,13.59559401]
[1757004330467,4.72970774,204.55,204.54,13.59559401]
[1757004330882,4.72970774,204.55,204.53,14.24559401]
[1757004331500,0.06,204.54,204.53,14.24559401]
[1757004332916,0.06,204.54,204.53,19.1348523]
[1757004335193,0.06,204.54,204.53,22.76604152]
[1757004335398,0.06,204.54,204.53,19.1348523]
[1757004335586,0.06,204.54,204.53,22.76532741]
[1757004336395,0.06,204.54,204.53,19.1348523]
[1757004336697,0.06,204.54,204.53,27.29314254]
[1757004338276,0.06,204.54,204.53,23.66456004]
[1757004338480,0.06,204.54,204.53,18.77530175]
[1757004338682,0.06,204.54,204.53,23.66456004]
[1757004340089,0.06,204.54,204.53,18.77530175]
[1757004340298,4.58970774,204.54,204.52,13.59559401]
[1757004340604,4.58970774,204.54,204.52,21.09457895]
[1757004340781,4.58970774,204.54,204.52,16.2050816]
[1757004341101,4.58970774,204.54,204.52,20.44453208]
[1757004341302,4.58970774,204.54,204.53,13.59559401]
[1757004342010,4.90970774,204.54,204.49,26.0]
[1757004342302,4.52970774,204.51,204.5,14.24559401]
[1757004343005,4.94916739,204.54,204.5,14.24559401]
[1757004343212,4.52970774,204.51,204.5,14.24559401]
[1757004343591,4.52970774,204.51,204.5,17.88132702]
[1757004344305,4.94906282,204.54,204.5,17.88283798]
[1757004344492,4.52970774,204.51,204.5,13.59559401]
[1757004344692,4.52970774,204.52,204.5,17.88277978]
[1757004344891,0.06,204.54,204.52,13.59559401]
[1757004345286,0.06,204.54,204.53,14.24559401]
[1757004345609,4.58970774,204.54,204.53,13.59559401]
[1757004345987,0.06,204.54,204.53,13.59559401]
[1757004346186,4.58970774,204.54,204.53,13.59559401]
[1757004346799,9.478727,204.54,204.53,13.59559401]
[1757004347001,4.58970774,204.54,204.53,13.59559401]
[1757004348204,9.478727,204.54,204.53,13.59559401]
[1757004349391,9.798727,204.54,204.53,13.59559401]
[1757004350717,9.478727,204.54,204.53,13.59559401]
[1757004354008,9.798727,204.54,204.53,13.59559401]
[1757004354497,9.478727,204.54,204.53,13.59559401]
[1757004355517,4.58970774,204.54,204.53,13.59559401]
[1757004356805,9.478727,204.54,204.53,13.59559401]
[1757004360400,4.94901926,204.54,204.53,13.59559401]
[1757004360600,9.478727,204.54,204.53,13.59559401]
[1757004361919,4.94901926,204.54,204.53,14.30559401]
[1757004362096,0.06,204.54,204.53,13.59559401]
[1757004362302,0.06,204.54,204.53,14.30559401]
[1757004362520,4.58970774,204.54,204.53,14.30559401]
[1757004363314,4.58970774,204.54,204.53,17.95657851]
[1757004363623,0.06,204.54,204.53,17.95657851]
[1757004364522,4.58970774,204.54,204.53,17.95657851]
[1757004365400,4.58970774,204.54,204.53,17.24657851]